Cogmind - Beta 14 @@@ ROGUE MODE // 2024.11.18 @ 14:19:53 Player: fwankie Result: Destroyed by SP-WTC(R) with Subdweller Machine Gun Performance ------------- Evolutions (0) 0 Regions Visited (2) 400 Robots Destroyed (20) 100 Value Destroyed (558) 558 Prototype IDs (0) 0 Alien Tech Used (0) 0 Bonus (0) 0 TOTAL SCORE: 1058 Bonus ------- None Cogmind --------- Core Integrity 0/250 Matter 216/300 Energy 99/100 System Corruption 0% Temperature Cool (0) Movement Core (350) Ox6 Location -10/Subcaves Parts ------- > --- POWER (1) -------- (None) > --- PROPULSION (2) --- (None) > --- UTILITY (2) ------ Large Storage Unit > --- WEAPON (2) ------- (None) > --- INVENTORY (15) --- Improved Ion Engine Improved Ion Engine Improved Treads Improved Treads Myomer Leg Structural Scanner Visual Processing Unit Grenade Launcher Grenade Launcher Mining Laser Welding Torch Peak State ------------ > --- POWER ------------ Improved Ion Engine > --- PROPULSION ------- Myomer Leg Myomer Leg > --- UTILITY ---------- Large Storage Unit Shield Generator > --- WEAPON ----------- Battle Rifle Light Cannon > --- INVENTORY -------- Improved Ion Engine Improved Ion Engine Improved Ion Engine Improved Treads Improved Treads Improved Treads Improved Treads Structural Scanner Visual Processing Unit Light Cannon Grenade Launcher Grenade Launcher Mining Laser Welding Torch [Rating: 24] Favorites ----------- Power Improved Ion Engine Engine Improved Ion Engine Propulsion Improved Treads Treads Improved Treads Leg Myomer Leg Utility Large Storage Unit Device Structural Scanner Storage Large Storage Unit Weapon Light Cannon Energy Gun Small Laser Ballistic Gun Battle Rifle Ballistic Cannon Light Cannon Launcher Grenade Launcher Build | -11 -10 -10 ------- Run | Yrd Mat Sub Slots Evolved . | . . . Power . | . . . Propulsion . | . . . Utility . | . . . Weapon . | . . . Parts Attached 32 | 6 18 8 Power 5 | 1 3 1 Engine 5 | 1 3 1 Core . | . . . Reactor . | . . . Propulsion 11 | 2 5 4 Treads 7 | . 5 2 Leg 4 | 2 . 2 Wheel . | . . . Hover . | . . . Flight . | . . . Utility 9 | 1 7 1 Device 7 | . 6 1 Storage 2 | 1 1 . Processor . | . . . Hackware . | . . . Protection . | . . . Artifact . | . . . Weapon 7 | 2 3 2 Energy Gun 2 | 2 . . Energy Cannon . | . . . Ballistic Gun 1 | . . 1 Ballistic Cannon 3 | . 2 1 Launcher 1 | . 1 . Special Weapon . | . . . Impact Weapon . | . . . Slashing Weapon . | . . . Piercing Weapon . | . . . Special Melee Weapon . | . . . Unidentified Prototypes . | . . . Parts Lost 9 | . 1 8 Power 1 | . . 1 Propulsion 3 | . . 3 Utility 1 | . . 1 Weapon 4 | . 1 3 Highest Loss Streak 8 | . 1 8 To Critical Strikes . | . . . Average Slot Usage (%) 98 | . 98 98 Engine 14 | . 14 14 Treads 23 | . 25 15 Leg 3 | . 1 12 Device 13 | . 13 13 Storage 14 | . 14 14 Energy Gun 10 | . 13 . Ballistic Gun 1 | . . 7 Ballistic Cannon 15 | . 13 19 Peak Build Rating 24 | 6 12 24 Average Rating 11 | 4 10 17 On Entrance 5 | . 6 11 Naked Turns . | . . . Heaviest Build 35 | 11 35 35 Greatest Support 50 | 20 46 50 Greatest Overweight (x) 6 | 1 1 6 Average Overweight (x) . | . . . Largest Inventory Capacity 15 | 8 15 15 Average Capacity 11 | 6 11 15 Most Carried 15 | 4 12 15 Average Carried 8 | 2 8 12 Final Capacity 15 | 8 15 15 Final Carried 11 | 3 11 11 Class Distribution -------------------- 100% | Mutant Dominant Class ---------------- Mutant | -10/Materials Mutant | -10/Subcaves Resources | -11 -10 -10 ----------- Run | Yrd Mat Sub Matter Collected 699 | 260 239 200 Remotely . | . . . Salvage Created 476 | . 371 105 Parts 29 | . 24 5 Haulers Intercepted . | . . . Recyclers Shooed 1 | . 1 . Parts Field Recycled . | . . . Retrieved Matter . | . . . Parts Self-Destructed 4 | . . 4 Prevented . | . . . Kills | -11 -10 -10 ------- Run | Yrd Mat Sub Combat Hostiles Destroyed 17 | . 12 5 Guns 7 | . 5 2 Cannons 6 | . 3 3 AOE 3 | . 3 . Classes Destroyed 5 | . 3 2 Turret 2 | . . 2 Watcher 1 | . 1 . Swarmer 6 | . 3 3 Grunt 9 | . 9 . Subdweller 2 | . . 2 Best Kill Streak 7 | . 7 3 Combat Bots Only 6 | . 6 3 Max Kills in Single Turn 2 | . 2 1 Gunslinging . | . . . Exploded 2 | . 2 . Melee . | . . . Uniques/NPCs Destroyed . | . . . Combat | -11 -10 -10 -------- Run | Yrd Mat Sub Hostile Shots Fired 177 | . 55 122 Missed 51 | . 11 40 Damage Taken 1673 | . 540 1133 Core 251 | . 59 192 Absorbed by Shields 207 | . 20 187 Regen/Repaired (Parts) 193 | . 193 . Core Remaining (%) 100 | 100 . . Volleys Fired 61 | . 34 27 Largest 2 | . 2 2 Hottest 90 | . 90 70 Shots Fired 121 | . 67 54 Gun 57 | . 46 11 Cannon 61 | . 18 43 Launcher 3 | . 3 . Special . | . . . Kinetic 72 | . 18 54 Thermal 46 | . 46 . Explosive 3 | . 3 . Electromagnetic . | . . . Robot Hit Streak 17 | . 15 17 Robot Miss Streak 6 | . 2 6 Penetration Max . | . . . Secondary Targets . | . . . Shots Hit Robots 81 | . 51 30 Core Hits 30 | . 20 10 Critical Kills . | . . . Critical Parts Destroyed . | . . . Critical Strikes 1 | . 1 . Burn 1 | . 1 . Melee Attacks . | . . . Impact . | . . . Slashing . | . . . Piercing . | . . . Sneak Attacks . | . . . Combat Hostiles . | . . . Follow-up Attacks . | . . . Damage Inflicted 1372 | . 891 481 Guns 527 | . 402 125 Cannons 617 | . 261 356 Explosions 228 | . 228 . Melee . | . . . Ramming . | . . . Kinetic 742 | . 261 481 Thermal 402 | . 402 . Explosive 228 | . 228 . Electromagnetic . | . . . Impact . | . . . Slashing . | . . . Piercing . | . . . Highest Corruption . | . . . Average Corruption . | . . . Corruption Purged . | . . . Corruption Blocked . | . . . Overload Shots . | . . . Overflow Damage 4 | . . 4 Projectiles 4 | . . 4 Explosions . | . . . Melee . | . . . Knockbacks 13 | . 11 2 Impact . | . . . Kinetic 10 | . 8 2 Secondary 3 | . 3 . Self-Inflicted Damage 36 | . 36 . Shots 1 | . 1 . Rammed . | . . . Targets Rammed . | . . . Kicked . | . . . Crushed . | . . . Highest Temperature 312 | . 312 . Average Temperature 88 | . 88 . Received Heat Transfer 483 | . 234 249 Effects 2 | . 2 . Energy Bleed 1 | . 1 . Interference 1 | . 1 . Siege Activations . | . . . Robots Corrupted . | . . . Combat Hostiles . | . . . Parts Fried . | . . . Impact Corruptions . | . . . Robots Melted 1 | . 1 . Combat Hostiles 1 | . 1 . Parts Melted 3 | . 3 . Heat Transferred 1104 | . 1104 . Parts Sabotaged . | . . . Parts Stolen . | . . . Parts Stripped . | . . . Power Chain Reactions . | . . . Alert | -11 -10 -10 ------- Run | Yrd Mat Sub Peak Influence 234 | . 234 . Initial . | . . . Average 104 | . 112 . Maximum Alert Level 1 | . 1 . Low Security (%) 72 | 100 70 . Level 1 27 | . 29 . Level 2 . | . . . Level 3 . | . . . Level 4 . | . . . Level 5 . | . . . High Security . | . . . Max Security . | . . . Squads Dispatched 2 | . 2 . Investigation 1 | . 1 . Extermination . | . . . Reinforcement 1 | . 1 . Assault . | . . . Garrison . | . . . Intercept . | . . . Searches Triggered . | . . . Construction Impeded . | . . . Haulers Reinforced . | . . . Active Scanning Responses . | . . . Cargo Convoy Interrupts . | . . . Stealth | -11 -10 -10 --------- Run | Yrd Mat Sub Distress Signals 1 | . 1 . Communications Jammed . | . . . Distress Signals . | . . . Times Spotted 38 | . 22 16 Peak Tracking Total 7 | . 5 7 Tactical Retreats 4 | . 2 2 Traps | -11 -10 -10 ------- Run | Yrd Mat Sub Traps Triggered 1 | . 1 . Indirectly . | . . . Trap Hack Attempts . | . . . Triggered . | . . . Disarmed . | . . . Reprogrammed . | . . . Reused . | . . . Traps Extracted . | . . . Installed . | . . . Triggered . | . . . Machines | -11 -10 -10 ---------- Run | Yrd Mat Sub Machines Disabled 2 | . 1 1 Max in Single Turn 1 | . 1 1 Machines Repaired . | . . . Machines Dismantled . | . . . Machines Sabotaged . | . . . Overloaded Fab Kills . | . . . Hacking | -11 -10 -10 --------- Run | Yrd Mat Sub Machines Accessed 3 | . 3 . Terminals 1 | . 1 . Fabricators . | . . . Repair Stations 1 | . 1 . Recycling Units 1 | . 1 . Scanalyzers . | . . . Garrison Access . | . . . Total Hacks 15 | . 15 . Successful 9 | . 9 . Failed 6 | . 6 . Catastrophic 1 | . 1 . Database Lockouts . | . . . Manual . | . . . Terminals 3 | . 3 . Fabricators . | . . . Repair Stations 6 | . 6 . Recycling Units 6 | . 6 . Scanalyzers . | . . . Garrison Access . | . . . Terminal Hacks 1 | . 1 . Alert Level 1 | . 1 . Fabricator Hacks . | . . . Repair Station Hacks 4 | . 4 . Scan Component 2 | . 2 . Repair 2 | . 2 . Recycling Unit Hacks 4 | . 4 . Process 1 | . 1 . Report Inventory 1 | . 1 . Retrieve Matter 2 | . 2 . Scanalyzer . | . . . Garrison Access Hacks . | . . . Unauthorized Hacks . | . . . Terminals . | . . . Fabricators . | . . . Repair Stations . | . . . Recycling Units . | . . . Scanalyzers . | . . . Garrison Access . | . . . Data Cores Recovered . | . . . Used . | . . . Hacking Detections 2 | . 2 . Full Trace Events 1 | . 1 . Feedback Events . | . . . Feedback Blocked . | . . . Robot Schematics Acquired . | . . . Robots Built . | . . . Authchips . | . . . Time . | . . . Total Robot Build Rating . | . . . Part Schematics Acquired . | . . . Parts Built . | . . . Authchips . | . . . Time . | . . . Total Part Build Rating . | . . . Parts Repaired 2 | . 2 . Time 64 | . 64 . Parts Recycled . | . . . Recycled Matter 4 | . 4 . Retrieved Matter 4 | . 4 . Retrieved Components . | . . . Parts Scanalyzed . | . . . Part Schematics Acquired . | . . . Parts Damaged . | . . . Bothacking | -11 -10 -10 ------------ Run | Yrd Mat Sub Used RIF Installer . | . . . Robots Hacked . | . . . Non-combat . | . . . Combat . | . . . Robot Hacks Applied . | . . . Relay Couplers Released . | . . . Fabnet Peak Effective % . | . . . Robots Rewired . | . . . Allies Hacked . | . . . Hacks Repelled . | . . . Allies | -11 -10 -10 -------- Run | Yrd Mat Sub Total Allies . | . . . Largest Group . | . . . Highest-Rated Group . | . . . Highest-Rated Ally . | . . . Total Orders . | . . . Ally Attacks . | . . . Total Damage . | . . . Kills . | . . . Allies Corrupted . | . . . Allies Melted . | . . . Intel | -11 -10 -10 ------- Run | Yrd Mat Sub Robot Analysis Total . | . . . Derelict Logs Recovered 1 | . . 1 Drone Launches . | . . . Drone Recoveries . | . . . Exploration | -11 -10 -10 ------------- Run | Yrd Mat Sub Turns Passed 1418 | 70 1033 315 Spaces Moved 635 | 55 453 127 Core 23 | 22 . 1 Treads 471 | . 418 53 Legs 141 | 33 35 73 Wheels . | . . . Hover . | . . . Flight . | . . . Fastest Speed 50 | 50 120 120 Average Speed 148 | 101 157 140 Slowest Speed 350 | 120 190 350 Overloaded Moves . | . . . Propulsion Burnouts . | . . . Robots Hopped . | . . . Cave-ins Triggered . | . . . Exploration Rate (%) 26 | 4 68 8 Regions Visited 2 Branch Regions 1 Pre-discovered Areas 1 | . . 1 Known Exits Taken . | . . . Unknown Exits Taken 2 | 1 1 . Scrap Searched . | . . . Spaces Dug . | . . . Terrain Destroyed 7 | . 7 . Melee . | . . . Projectile . | . . . AOE 7 | . 7 . Terrain Rammed . | . . . Walls Destroyed . | . . . Machines Disabled . | . . . Actions | -11 -10 -10 --------- Run | Yrd Mat Sub Total 987 | 69 706 212 Wait 212 | . 170 42 Move 633 | 54 452 127 Hop . | . . . Pick Up 36 | 9 22 5 Fast Attach . | . . . Attach 12 | 6 4 2 Detach . | . . . Swap 20 | . 14 6 Drop 13 | . 10 3 Fire 61 | . 34 27 Melee . | . . . Ram . | . . . Kick . | . . . Crush . | . . . Escape Stasis . | . . . Rewire . | . . . Trap . | . . . Miscellaneous . | . . . Route ------- -11/Scrapyard -10/Materials (discovered 3 exits: [*Mat] / [*Min] / [*Sub]) -10/Subcaves (discovered 1 exit: [*Rec]) History --------- Turn | Location | Event 9 | -11/Scrapyard | Discovered new exit (range 16) 71 | -11/Scrapyard | Entered Materials 330 | -10/Materials | Build established: Mutant 382 | -10/Materials | Discovered new exit (range 8) 849 | -10/Materials | Discovered new exit (range 16) 914 | -10/Materials | Repaired Imp. Treads 948 | -10/Materials | Repaired Imp. Treads 1095 | -10/Materials | Discovered new exit (range 7) 1104 | -10/Materials | Entered Subcaves 1104 | -10/Subcaves | Discovered new exit (range 13) 1254 | -10/Subcaves | Learned location of Storage (-8) 1380 | -10/Subcaves | Ambushed by swarm of Subdwellers 1391 | -10/Subcaves | Core integrity fell below 50% 1417 | -10/Subcaves | Core integrity fell below 20% 1419 | -10/Subcaves | Destroyed by SP-WTC(R) with Subdweller Machine Gun Last Messages --------------- 01384_ SP-WTC(R) emerges from the Twisted Machinery. 01385_ CX-I8Y(R) emerges from the Twisted Machinery. 01385_ F2-VGF(R) emerges from the Twisted Machinery. 01385_ 6T-M4G(R) emerges from the Twisted Machinery. 01385_ AR-FYW(R) emerges from the Twisted Machinery. 01387_ Myomer Leg destroyed. 01392_ GG-WGK(R) emerges from the Twisted Machinery. 01392_ Shield Generator destroyed. 01407_ Lgt. Cannon destroyed. 01412_ Imp. Treads destroyed. 01413_ 6T-M4G(R) suffers critical hit (Destroy). 01414_ Lgt. Cannon destroyed. 01415_ Imp. Ion Engine destroyed. 01417_ Imp. Treads destroyed. Map ----- +----------------------------------------------------+ | ?????????????????????????????????????????????????? | | ?????????????????????????????????????????????????? | | ?????????????????????????????????????????????????? | | ?????????????????????????????????????????????????? | | ?????????????????????????????????????????????????? | | ?????????????????????????????????????????????????? | | ?????????????????????????????????????????????????? | | ?????????????????????????????????????????????????? | | ?????????????????????????????????????????????????? | | ?????????????????????????????????????????????????? | | ??????????????????????????????? ####?????????????? | | ?????????????????????????????? ?????????????? | | ?????????????????????????????? ?????????????? | | ?????????????????????????????? ?????????????? | | ????????????????#?????????????# #?????????????? | | ????????????????# ????????????# ##?##?????????? | | ????????????????? ???????????? ## # ????????? | | ?????????????????? ???????????? ?????????? | | ??????????????????? ???????????# ?????????## | | ???????????????????? ??????????# #?????????? # | | ????????????????????? ???????### #####?????? | | ?????????????????????# ??????# ##""####### | | ?????????????????????# ####### #?"""" # | | ?????????????????????# # #?# ###"""% | | ????????????????????## #?## ##" | | ????????????????????# @ ### " ## | | ????????????????????### ; """ ### | | ??????????????????????### RR" ### | | ????????????????????????# """ ## | | ???????????????????????# ###"" "## ### | | ???????????????????????#####?#" ###### | | ?????????????????????????????# "##????## # ##^ | | ?????????????????????????????# "#?????## ####?# | | ?????????????????????????????# "#????## #????? | | ????????????????????????????" ""#???## #????? | | ????????????????????????????""""#???## #????? | | ?????????????????????????????""#???## ###????? | | ???????????????????????????????????# # #??????? | | ???????????????????????????????????# ## ##??????? | | ????????????????????????????????????# ## #???????? | | ?????????????????????????????????????# ##??????? | | ?????????????????????????????????????##"# ##?????? | | ??????????????????????????????????????## # ##????? | | ???????????????????????????????????????## # #????? | | ????????????????????????????????????????##**#????? | | ?????????????????????????????????????????#= ##???? | | ?????????????????????????????????????????## ####? | | ??????????????????????????????????????????##!##### | | ????????????????????????????????????????# ### # | | ???????????????????????????????????????### ?### # | +----------------------------------------------------+ Best States ------------- Heat Dissipation 25 Energy Generation 12 Energy Capacity 265 Matter Stores 300 Matter Capacity 300 Sight Range 16 Terrain Scan Density 10 Evasion (%) 55 Recoil Reduction 2 Item Schematics ----------------- None Robot Schematics ------------------ None Fabricated ------------ Nothing Alien Tech Used ----------------- None Achievements -------------- Let's See Who's Tougher Challenges ------------ None Game ------ Seed NovaMassField Manual? 0 Play Time 00:20:51 Cumulative 9.0 hours Start 2024.11.18 @ 13:58:46 End 2024.11.18 @ 14:19:53 Sessions 1 Manual Loads 0 Difficulty Rogue Special Mode None Game No. 10 Rogue 10 Adventurer 0 Explorer 0 Win Type - Total 0 Types 0/0/0/0/0/0/0/0/0 Lore% 7 Gallery% 14 Achievement% 14 Wizard Run 0 Options --------- Layout 1 ASCII 0 Keyboard 0 Movement Numpad Keybinds 0 Fullscreen 0 Font 20/SmallcapsGlow Map View 50x35 Zoom Use 0% Tactical HUD 1 Map Filters NONE Filters NONE Steam 1 RUN: de5a26be-cc24-44ef-82b6-8c3d223985b6